fUST/lending_fUST_20250701
["ID","MTS","AMOUNT","RATE_DAILY","PERIOD"]
[368698318,1751307042404,-947.77,0.00020879,2]
[368698319,1751307042413,-460.0,0.00020879,2]
[368698320,1751307042422,-460.0,0.00020879,2]
[368698321,1751307042432,-460.0,0.00020879,2]
[368698323,1751307042442,-647.6,0.00020879,2]
[368698324,1751307042451,-460.0,0.00020879,2]
[368698325,1751307042461,-1152.06854847,0.000209,4]
[368698327,1751307042471,-162.91,0.00021021,2]
[368698329,1751307042481,-460.0,0.00021021,2]
[368698330,1751307042490,-565.78,0.00021021,2]
[368698332,1751307042500,-460.0,0.00021021,2]
[368698334,1751307042512,-560.53,0.00021021,2]
[368698335,1751307042522,-1152.06854821,0.00021072,4]
[368698336,1751307042531,-614.67,0.00021093,2]
[368698337,1751307042541,-460.0,0.00021093,2]
[368698338,1751307042550,-268.32,0.00021111,2]
[368698339,1751307042560,-460.0,0.00021111,2]
[368698340,1751307042569,-150.92,0.00021111,2]
[368698343,1751307042579,-263.04,0.00021111,2]
[368698345,1751307042589,-460.0,0.00021121,2]
[368698347,1751307042599,-628.96,0.00021121,2]
[368698349,1751307042609,-460.0,0.00021121,2]
[368698351,1751307042618,-460.0,0.0002115,2]
[368698353,1751307042628,-460.0,0.00021151,2]
[368698355,1751307042638,-460.0,0.00021151,2]
[368698357,1751307042647,-460.0,0.00021151,2]
[368698359,1751307042657,-460.0,0.00021151,2]
[368698361,1751307042667,-645.07,0.00021151,2]
[368698364,1751307042677,-460.0,0.00021151,2]
[368698367,1751307042687,-592.51,0.00021153,2]
[368698369,1751307042697,-947.77,0.00021153,2]
[368698370,1751307042707,-460.0,0.00021153,2]
[368698372,1751307042718,-460.0,0.00021153,2]
[368698373,1751307042727,-460.0,0.00021153,2]
[368698374,1751307042737,-647.6,0.00021153,2]
[368698375,1751307042747,-196.26255277,0.00021153,2]
[368698376,1751307042757,-500.0,0.00021205,2]
[368698377,1751307042768,-358.0,0.00021216,2]
[368698378,1751307042779,-193.59662985,0.00021228,2]
[368698379,1751307042788,-1152.06854821,0.00021245,4]
[368698380,1751307042797,-183.0,0.00021284,2]
[368698381,1751307042807,-460.0,0.00021295,2]
[368698382,1751307042816,-460.0,0.00021295,2]
[368698383,1751307042826,-183.0,0.00021367,2]
[368698384,1751307042836,-614.67,0.00021367,2]
[368698385,1751307042846,-460.0,0.00021367,2]
[368698386,1751307042855,-221.34,0.00021385,2]
[368698387,1751307042865,-183.0,0.00021394,2]
[368698388,1751307042876,-460.0,0.00021395,2]
[368698389,1751307042886,-628.96,0.00021395,2]
[368698390,1751307042896,-460.0,0.00021395,2]
[368698391,1751307042908,-1152.06854821,0.00021417,5]
[368698392,1751307042918,-460.0,0.00021424,2]
[368698393,1751307042928,-460.0,0.00021425,2]
[368698394,1751307042938,-460.0,0.00021425,2]
[368698396,1751307042949,-460.0,0.00021425,2]
[368698397,1751307042959,-460.0,0.00021425,2]
[368698399,1751307042968,-645.07,0.00021425,2]
[368698400,1751307042979,-460.0,0.00021425,2]
[368698401,1751307042988,-592.51,0.00021427,2]
[368698402,1751307042999,-947.77,0.00021427,2]
[368698403,1751307043010,-460.0,0.00021427,2]
[368698404,1751307043021,-460.0,0.00021427,2]
[368698405,1751307043031,-460.0,0.00021427,2]
[368698406,1751307043040,-647.6,0.00021427,2]
[368698407,1751307043050,-183.0,0.00021494,2]
[368698408,1751307043059,-160.0,0.00021497,3]
[368698409,1751307043069,-183.0,0.00021511,2]
[368698410,1751307043079,-358.58,0.00021559,3]
[368698411,1751307043089,-460.0,0.00021569,2]
[368698412,1751307043099,-460.0,0.00021569,2]
[368698413,1751307043108,-1152.06854821,0.0002159,5]
[368698414,1751307043117,-614.67,0.00021641,2]
[368698415,1751307043127,-460.0,0.00021641,2]
[368698416,1751307043138,-207.4,0.00021644,2]
[368698417,1751307043147,-5000.0,0.00021644,2]
[368698418,1751307043159,-500.0,0.00021644,2]
[368698419,1751307043168,-931.80713625,0.00021644,2]
[368698420,1751307043178,-151.0,0.00021644,2]
[368698421,1751307043187,-500.0,0.00021644,2]
[368698422,1751307043197,-500.0,0.00021644,2]
[368698423,1751307043207,-500.0,0.00021644,2]
[368698424,1751307043216,-500.0,0.00021644,2]
[368698425,1751307043226,-500.0,0.00021644,2]
[368698426,1751307043236,-500.0,0.00021644,2]
[368698427,1751307043246,-500.0,0.00021644,2]
[368698428,1751307043255,-690.642,0.00021644,2]
[368698429,1751307043266,-500.0,0.00021644,2]
[368698430,1751307043276,-500.0,0.00021644,2]
[368698431,1751307043285,-465.60752438,0.00021644,2]
[368698432,1751307043294,-500.0,0.00021644,2]
[368698433,1751307043304,-500.0,0.00021644,2]
[368698434,1751307043313,-500.0,0.00021644,2]
[368698435,1751307043322,-500.0,0.00021644,2]
[368698436,1751307043331,-500.0,0.00021644,2]
[368698437,1751307043340,-500.0,0.00021644,2]
[368698438,1751307043350,-500.0,0.00021644,2]
[368698439,1751307043360,-500.0,0.00021644,2]
[368698440,1751307043369,-500.0,0.00021644,2]
[368698441,1751307043379,-500.0,0.00021644,2]
[368698442,1751307043388,-25000.0,0.00021644,2]
[368698443,1751307043398,-23221.87729931,0.00021644,2]
[368698444,1751307043407,-151.0,0.00021644,2]
[368698445,1751307043416,-151.0,0.00021644,2]
[368698446,1751307043425,-151.0,0.00021644,2]
[368698447,1751307043435,-261.0,0.00021665,2]
[368698448,1751307043444,-460.0,0.00021669,2]
[368698449,1751307043454,-628.96,0.00021669,2]
[368698450,1751307043463,-460.0,0.00021669,2]
[368698451,1751307043474,-460.0,0.00021698,2]
[368698452,1751307043483,-716.195754,0.00021699,2]
[368698453,1751307043493,-460.0,0.00021699,2]
[368698454,1751307043503,-460.0,0.00021699,2]
[368698455,1751307043513,-460.0,0.00021699,2]
[368698456,1751307043523,-460.0,0.00021699,2]
[368698457,1751307043533,-645.07,0.00021699,2]
[368698458,1751307043542,-460.0,0.00021699,2]
[368698459,1751307043553,-261.0,0.00021699,2]
[368698460,1751307043563,-592.51,0.00021701,2]
[368698461,1751307043572,-947.77,0.00021701,2]
[368698462,1751307043582,-460.0,0.00021701,2]
[368698463,1751307043592,-460.0,0.00021701,2]
[368698464,1751307043601,-460.0,0.00021701,2]
[368698465,1751307043611,-647.6,0.00021701,2]
[368698466,1751307043620,-261.0,0.00021732,2]
[368698467,1751307043630,-742.6949969,0.00021754,2]
[368698468,1751307043640,-1152.06854821,0.00021762,5]
[368698469,1751307043649,-770.17471178,0.00021809,2]
[368698470,1751307043659,-460.0,0.00021843,2]
[368698471,1751307043668,-460.0,0.00021843,2]
[368698472,1751307043677,-798.67117612,0.00021864,2]
[368698473,1751307043687,-4847.45160258,0.000219,2]
[368698474,1751307043696,-614.67,0.00021915,2]
[368698475,1751307043706,-460.0,0.00021915,2]
[368698476,1751307043716,-500.0,0.00021917,2]
[368698477,1751307043726,-500.0,0.00021917,2]
[368698478,1751307043737,-500.0,0.00021917,2]
[368698479,1751307043746,-500.0,0.00021917,2]
[368698480,1751307043755,-1317.7223025,0.00021918,7]
[368698481,1751307043767,-400.0,0.00021918,7]
[368698482,1751307043777,-1142.47664435,0.00021918,2]
[368698483,1751307043787,-828.22200964,0.00021919,2]
[368698484,1751307043796,-261.0,0.0002193,2]
[368698485,1751307043805,-1152.06854821,0.00021934,6]
[368698486,1751307043815,-151.0,0.00021943,7]
[368698487,1751307043824,-626.096722,0.00021943,7]
[368698488,1751307043834,-626.096722,0.00021943,7]
[368698489,1751307043843,-460.0,0.00021943,2]
[368698490,1751307043853,-628.96,0.00021943,2]
[368698491,1751307043862,-460.0,0.00021943,2]
[368698492,1751307043872,-193.59662985,0.00021962,2]
[368698493,1751307043881,-391.57,0.00021972,2]
[368698494,1751307043891,-500.0,0.00021973,2]
[368698495,1751307043900,-500.0,0.00021973,2]
[368698496,1751307043909,-500.0,0.00021973,2]
[368698497,1751307043920,-500.0,0.00021973,2]
[368698498,1751307043930,-500.0,0.00021973,2]
[368698499,1751307043939,-500.0,0.00021973,2]
[368698500,1751307043949,-500.0,0.00021973,2]
[368698501,1751307043958,-500.0,0.00021973,2]
[368698502,1751307043967,-500.0,0.00021973,2]
[368698503,1751307043977,-306.90086317,0.00021973,2]
[368698504,1751307043986,-500.0,0.00021973,2]
[368698505,1751307043996,-500.0,0.00021973,2]
[368698506,1751307044005,-500.0,0.00021973,2]
[368698507,1751307044016,-500.0,0.00021973,2]
[368698508,1751307044025,-500.0,0.00021973,2]
[368698509,1751307044035,-500.0,0.00021973,2]
[368698510,1751307044044,-535.06885935,0.00021973,2]
[368698511,1751307044054,-500.0,0.00021973,2]
[368698512,1751307044063,-500.0,0.00021973,2]
[368698513,1751307044072,-500.0,0.00021973,2]
[368698514,1751307044082,-500.0,0.00021973,2]
[368698515,1751307044091,-500.19386465,0.00021973,2]
[368698516,1751307044101,-160.047979,0.00021973,2]
[368698517,1751307044110,-500.0,0.00021973,2]
[368698518,1751307044120,-500.0,0.00021973,2]
[368698519,1751307044129,-160.03559696,0.00021973,2]
[368698520,1751307044139,-500.0,0.00021973,2]
[368698521,1751307044149,-500.0,0.00021973,2]
[368698522,1751307044162,-160.0494529,0.00021973,2]
[368698523,1751307044172,-500.0,0.00021973,2]
[368698524,1751307044181,-500.0,0.00021973,2]
[368698525,1751307044192,-500.0,0.00021973,2]
[368698526,1751307044203,-500.0,0.00021973,2]
[368698527,1751307044212,-500.0,0.00021973,2]
[368698528,1751307044222,-500.0,0.00021973,2]
[368698529,1751307044376,-500.0,0.00021973,2]
[368698530,1751307044388,-500.0,0.00021973,2]
[368698531,1751307044397,-600.0,0.00021973,2]
[368698532,1751307044406,-160.04803609,0.00021973,2]
[368698533,1751307044416,-500.0,0.00021973,2]
[368698534,1751307044425,-500.0,0.00021973,2]
[368698535,1751307044434,-500.0,0.00021973,2]
[368698536,1751307044444,-521.29076982,0.00021973,2]
[368698537,1751307044453,-500.0,0.00021973,2]
[368698538,1751307044463,-564.16242984,0.00021973,2]
[368698539,1751307044473,-500.0,0.00021973,2]
[368698540,1751307044482,-500.0,0.00021973,2]
[368698541,1751307044491,-500.0,0.00021973,2]
[368698542,1751307044501,-500.0,0.00021973,2]
[368698543,1751307044510,-500.0,0.00021973,2]
[368698544,1751307044519,-500.0,0.00021973,2]
[368698545,1751307044529,-500.0,0.00021973,2]
[368698546,1751307044539,-500.39951782,0.00021973,2]
[368698547,1751307044548,-500.0,0.00021973,2]
[368698548,1751307044558,-500.0,0.00021973,2]
[368698549,1751307044568,-500.0,0.00021973,2]
[368698550,1751307044579,-500.0,0.00021973,2]
[368698551,1751307044589,-151.0,0.00021973,7]
[368698552,1751307044598,-151.0,0.00021973,2]
[368698553,1751307044608,-151.0,0.00021973,7]
[368698554,1751307044617,-460.0,0.00021973,2]
[368698555,1751307044627,-151.0,0.00021973,7]
[368698556,1751307044637,-151.0,0.00021973,7]
[368698557,1751307044646,-460.0,0.00021973,2]
[368698558,1751307044657,-460.0,0.00021973,2]
[368698559,1751307044666,-460.0,0.00021973,2]
[368698560,1751307044676,-645.07,0.00021973,2]
[368698561,1751307044685,-460.0,0.00021973,2]
[368698562,1751307044694,-858.86622399,0.00021974,2]
[368698563,1751307044704,-592.51,0.00021975,2]
[368698564,1751307044714,-947.77,0.00021975,2]
[368698565,1751307044724,-460.0,0.00021975,2]
[368698566,1751307044733,-460.0,0.00021975,2]
[368698567,1751307044742,-460.0,0.00021975,2]
[368698568,1751307044752,-647.6,0.00021975,2]
[368698569,1751307044762,-151.0,0.00021998,7]
[368698570,1751307044772,-151.0,0.00021998,7]
[368698571,1751307044782,-152.0,0.00022,2]
[368698572,1751307044791,-217599.95820287,0.00022,5]
[368698573,1751307044801,-351.88205673,0.00022,2]
[368698574,1751307044810,-10792.93146828,0.00022,2]
[368698575,1751307044819,-10112.58430786,0.00022,2]
[368698576,1751307044828,-28517.67213961,0.00022,2]
[368698577,1751307044838,-161.44317001,0.00022,2]
[368698578,1751307044848,-134174.79,0.00022,7]
[368698579,1751307044858,-141983.63,0.00022,2]
[368698580,1751307044868,-15354.52,0.00022,7]
[368698581,1751307044877,-151.0,0.00022,7]
[368698582,1751307044886,-151.0,0.00022,7]
[368698583,1751307044895,-151.0,0.00022,7]
[368698584,1751307044905,-151.0,0.00022,7]
[368698585,1751307044914,-151.0,0.00022,7]
[368698586,1751307044924,-151.0,0.00022,7]
[368698587,1751307044935,-151.575893,0.00022,7]
[368698588,1751307044946,-151.0,0.00022,7]
[368698589,1751307044956,-151.0,0.00022,7]
[368698590,1751307044966,-720.799827,0.00022,7]
[368698591,1751307044977,-720.799827,0.00022,7]
[368698592,1751307044987,-720.799827,0.00022,7]
[368698593,1751307044997,-720.799827,0.00022,7]
[368698594,1751307045008,-720.799827,0.00022,7]
[368698595,1751307045018,-720.799827,0.00022,7]
[368698596,1751307045028,-151.0,0.00022,7]
[368698597,1751307045038,-151.0,0.00022,7]
[368698598,1751307045048,-151.0,0.00022,7]
[368698599,1751307045059,-151.0,0.00022,7]
[368698600,1751307045070,-626.096722,0.00022,7]
[368698601,1751307045080,-626.096722,0.00022,7]
[368698602,1751307045091,-626.096722,0.00022,7]
[368698603,1751307045102,-151.0,0.00022,2]
[368698604,1751307045111,-229.354144,0.00022,2]
[368698605,1751307045122,-151.0,0.00022,7]
[368698606,1751307045132,-151.0,0.00022,7]
[368698607,1751307045143,-151.0,0.00022,7]
[368698608,1751307045156,-626.096722,0.00022,7]
[368698609,1751307045167,-626.096722,0.00022,7]
[368698610,1751307045178,-626.096722,0.00022,7]
[368698611,1751307045190,-151.0,0.00022,7]
[368698612,1751307045199,-151.0,0.00022,7]
[368698613,1751307045210,-847.41730813,0.00022,7]
[368698614,1751307045219,-151.0,0.00022,7]
[368698615,1751307045231,-151.0,0.00022,7]
[368698616,1751307045242,-151.0,0.00022,7]
[368698617,1751307045253,-151.0,0.00022,7]
[368698618,1751307045263,-151.0,0.00022,7]
[368698619,1751307045274,-151.0,0.00022,7]
[368698620,1751307045284,-151.0,0.00022,7]
[368698621,1751307045293,-151.0,0.00022,7]
[368698622,1751307045303,-151.0,0.00022,7]
[368698623,1751307045313,-151.0,0.00022,7]
[368698624,1751307045323,-151.0,0.00022,7]
[368698625,1751307045333,-260.234027,0.00022,7]
[368698626,1751307045342,-213.84631524,0.00022,7]
[368698627,1751307045351,-151.0,0.00022,7]
[368698628,1751307045360,-151.0,0.00022,7]
[368698629,1751307045369,-151.0,0.00022,7]
[368698630,1751307045379,-420.51565679,0.00022029,2]
[368698631,1751307045388,-261.0,0.00022037,2]
[368698632,1751307045397,-366.3004382,0.00022082,2]
[368698633,1751307045407,-151.0,0.000221,6]
[368698634,1751307045416,-1152.06854821,0.00022107,6]
[368698635,1751307045426,-354.7304789,0.0002211,2]
[368698636,1751307045435,-306.0,0.0002211,2]
[368698637,1751307045444,-159.1138685,0.0002211,2]
[368698638,1751307045454,-575.2177202,0.0002211,2]
[368698639,1751307045464,-153.0,0.0002211,2]
[368698640,1751307045473,-575.2177202,0.0002211,2]
[368698641,1751307045484,-406.0,0.0002211,2]
[368698642,1751307045494,-460.0,0.00022117,2]
[368698644,1751307045504,-460.0,0.00022117,2]
[368698645,1751307045513,-614.67,0.00022189,2]
[368698646,1751307045523,-314.895407,0.00022189,2]
[368698647,1751307045532,-151.0,0.00022192,2]
[368698648,1751307045541,-460.0,0.00022217,2]
[368698649,1751307045551,-628.96,0.00022217,2]
[368698650,1751307045560,-460.0,0.00022217,2]
[368698651,1751307045569,-168.0,0.00022224,2]
[368698652,1751307045579,-4847.4516025,0.00022233,2]
[368698653,1751307045588,-1618.89,0.00022247,4]
[368698654,1751307045598,-460.0,0.00022247,2]
[368698655,1751307045607,-460.0,0.00022247,2]
[368698656,1751307045617,-460.0,0.00022247,2]
[368698657,1751307045627,-460.0,0.00022247,2]
[368698658,1751307045636,-645.07,0.00022247,2]
[368698659,1751307045645,-460.0,0.00022247,2]
[368698660,1751307045655,-592.51,0.00022249,2]
[368698661,1751307045664,-947.77,0.00022249,2]
[368698662,1751307045674,-264.06,0.00022249,2]
[368698663,1751307045683,-460.0,0.00022249,2]
[368698664,1751307045693,-460.0,0.00022249,2]
[368698665,1751307045702,-647.6,0.00022249,2]
[368698666,1751307045712,-354.0,0.00022275,2]
[368698667,1751307045721,-1152.06854821,0.00022279,6]
[368698668,1751307045731,-2200.0,0.00022286,2]
[368698669,1751307045741,-966.0,0.00022298,2]
[368698670,1751307045750,-646.0,0.00022298,2]
[368698671,1751307045761,-2151.0,0.00022298,2]
[368698672,1751307045772,-1618.89,0.00022347,3]
[368698673,1751307045782,-354.0,0.00022368,2]
[368698674,1751307045792,-39157.51352766,0.00022374,2]
[368698675,1751307045802,-460.0,0.00022391,2]
[368698676,1751307045811,-460.0,0.00022391,2]
[368698677,1751307045821,-151.0,0.000224,10]
[368698678,1751307045831,-154.855591,0.00022442,7]
[368698679,1751307045841,-1618.89,0.00022447,5]
[368698680,1751307045852,-1152.06854821,0.00022452,7]
[368698681,1751307045862,-614.67,0.00022463,2]
[368698682,1751307045871,-460.0,0.00022491,2]
[368698683,1751307045880,-628.96,0.00022491,2]
[368698684,1751307045889,-460.0,0.00022491,2]
[368698685,1751307045899,-1004.35877532,0.000225,2]
[368698686,1751307045909,-16950.1794592,0.000225,2]
[368698687,1751307045918,-1000.0,0.00022521,2]
[368698688,1751307045928,-1000.0,0.00022521,2]
[368698689,1751307045938,-1000.0,0.00022521,2]
[368698690,1751307045947,-1002.19822137,0.00022521,2]
[368698691,1751307045957,-1000.0,0.00022521,2]
[368698692,1751307045966,-1000.0,0.00022521,2]
[368698694,1751307045976,-1000.0,0.00022521,2]
[368698696,1751307045985,-496.51947691,0.00022521,2]
[368698697,1751307045994,-1000.0,0.00022521,2]
[368698698,1751307046003,-500.79162839,0.00022521,2]
[368698699,1751307046013,-998.22847536,0.00022521,2]
[368698700,1751307046022,-1000.0,0.00022521,2]
[368698701,1751307046032,-1001.58217862,0.00022521,2]
[368698702,1751307046041,-1000.0,0.00022521,2]
[368698703,1751307046050,-1000.0,0.00022521,2]
[368698704,1751307046059,-1000.0,0.00022521,2]
[368698705,1751307046069,-1000.0,0.00022521,2]
[368698706,1751307046079,-1000.0,0.00022521,2]
[368698707,1751307046088,-1000.0,0.00022521,2]
[368698708,1751307046098,-1000.0,0.00022521,2]
[368698709,1751307046107,-1000.0,0.00022521,2]
[368698710,1751307046116,-1000.0,0.00022521,2]
[368698711,1751307046126,-468.30036859,0.00022521,2]
[368698712,1751307046135,-1000.0,0.00022521,2]
[368698713,1751307046144,-1000.0,0.00022521,2]
[368698714,1751307046157,-1000.0,0.00022521,2]
[368698715,1751307046167,-1000.0,0.00022521,2]
[368698716,1751307046176,-1000.0,0.00022521,2]
[368698717,1751307046186,-1200.0,0.00022521,2]
[368698718,1751307046197,-1000.0,0.00022521,2]
[368698719,1751307046207,-1000.0,0.00022521,2]
[368698720,1751307046217,-1001.76150123,0.00022521,2]
[368698721,1751307046227,-1000.0,0.00022521,2]
[368698722,1751307046236,-652.39836186,0.00022521,2]
[368698723,1751307046246,-1000.0,0.00022521,2]
[368698724,1751307046256,-1000.0,0.00022521,2]
[368698725,1751307046268,-552.70320587,0.00022521,2]
[368698726,1751307046278,-1000.0,0.00022521,2]
[368698727,1751307046289,-1000.0,0.00022521,2]
[368698728,1751307046298,-841.81617322,0.00022521,2]
[368698729,1751307046308,-409.66645817,0.00022521,2]
[368698730,1751307046319,-1000.0,0.00022521,2]
[368698731,1751307046329,-1000.0,0.00022521,2]
[368698732,1751307046338,-1000.0,0.00022521,2]
[368698733,1751307046348,-460.0,0.00022521,2]
[368698734,1751307046358,-460.0,0.00022521,2]
[368698735,1751307046369,-460.0,0.00022521,2]
[368698736,1751307046378,-460.0,0.00022521,2]
[368698737,1751307046388,-645.07,0.00022521,2]
[368698738,1751307046398,-460.0,0.00022521,2]
[368698739,1751307046408,-151.0,0.00022521,7]
[368698740,1751307046418,-592.51,0.00022523,2]
[368698741,1751307046428,-947.77,0.00022523,2]
[368698742,1751307046437,-460.0,0.00022523,2]
[368698743,1751307046447,-460.0,0.00022523,2]
[368698744,1751307046457,-647.6,0.00022523,2]
[368698745,1751307046467,-1618.89,0.00022547,2]
[368698746,1751307046477,-4847.4516025,0.00022566,2]
[368698747,1751307046487,-30068.88854395,0.000226,5]
[368698748,1751307046497,-161.56557661,0.000226,7]
[368698749,1751307046507,-10079.64138291,0.000226,2]
[368698750,1751307046519,-152.302486,0.000226,7]
[368698751,1751307046529,-151.0,0.000226,7]
[368698752,1751307046539,-151.0,0.000226,7]
[368698753,1751307046549,-152.708078,0.000226,7]
[368698754,1751307046560,-152.708078,0.000226,7]
[368698755,1751307046570,-151.0,0.000226,7]
[368698756,1751307046580,-151.0,0.000226,7]
[368698757,1751307046590,-151.0,0.000226,7]
[368698758,1751307046600,-626.096722,0.000226,7]
[368698759,1751307046610,-626.096722,0.000226,7]
[368698760,1751307046621,-151.0,0.000226,7]
[368698761,1751307046631,-151.0,0.000226,7]
[368698762,1751307046641,-151.0,0.000226,7]
[368698763,1751307046651,-1152.06854821,0.00022624,7]
[368698764,1751307046661,-1618.89,0.00022647,7]
[368698765,1751307046671,-460.0,0.00022665,2]
[368698766,1751307046681,-460.0,0.00022665,2]
[368698767,1751307046691,-151.0,0.00022684,7]
[368698768,1751307046701,-193.59662985,0.00022697,2]
[368698769,1751307046710,-500.0,0.000227,2]
[368698770,1751307046720,-500.0,0.000227,2]
[368698771,1751307046730,-500.0,0.000227,2]
[368698772,1751307046740,-464.15321446,0.000227,2]
[368698773,1751307046749,-614.67,0.00022737,2]
[368698774,1751307046759,-1618.89,0.00022747,7]
[368698775,1751307046771,-460.0,0.00022765,2]
[368698776,1751307046780,-628.96,0.00022765,2]
[368698777,1751307046790,-460.0,0.00022765,2]
[368698778,1751307046800,-216.18,0.00022795,2]
[368698779,1751307046810,-460.0,0.00022795,2]
[368698780,1751307046821,-460.0,0.00022795,2]
[368698781,1751307046832,-460.0,0.00022795,2]
[368698782,1751307046844,-645.07,0.00022795,2]
[368698783,1751307046855,-172.85,0.00022795,2]
[368698784,1751307046864,-1152.06854821,0.00022797,7]
[368698785,1751307046874,-592.51,0.00022797,2]
[368698786,1751307046884,-947.77,0.00022797,2]
[368698787,1751307046894,-460.0,0.00022797,2]
[368698788,1751307046903,-174.7003,0.00022797,2]
[368698789,1751307046914,-647.6,0.00022797,2]
[368698790,1751307046924,-517.26412173,0.000228,5]
[368698791,1751307046935,-151.0,0.00022832,7]
[368698792,1751307046945,-1618.89,0.00022847,6]
[368698793,1751307046954,-151.0,0.00022866,7]
[368698794,1751307046965,-150.0,0.00022873,2]
[368698795,1751307046975,-4847.4516025,0.000229,2]
[368698797,1751307046984,-745418.0055881,0.000229,7]
[368698798,1751307046994,-151.0,0.000229,7]
[368698799,1751307047003,-151.0,0.000229,7]
[368698800,1751307047014,-151.0,0.000229,7]
[368698801,1751307047024,-258.559854,0.000229,7]
[368698802,1751307047034,-151.0,0.000229,7]
[368698803,1751307047044,-151.0,0.000229,7]
[368698804,1751307047053,-151.0,0.000229,7]
[368698805,1751307047063,-152.708078,0.000229,7]
[368698806,1751307047073,-152.708078,0.000229,7]
[368698807,1751307047082,-151.0,0.000229,7]
[368698808,1751307047091,-151.0,0.000229,7]
[368698809,1751307047102,-151.0,0.000229,7]
[368698810,1751307047112,-151.0,0.000229,7]
[368698811,1751307047121,-151.0,0.000229,7]
[368698812,1751307047131,-720.799827,0.000229,7]
[368698813,1751307047141,-720.799827,0.000229,7]
[368698814,1751307047153,-151.0,0.000229,7]
[368698815,1751307047162,-626.096722,0.000229,7]
[368698816,1751307047172,-626.096722,0.000229,7]
[368698817,1751307047181,-151.0,0.000229,7]
[368698818,1751307047191,-151.0,0.000229,7]
[368698819,1751307047200,-151.0,0.000229,7]
[368698820,1751307047209,-151.0,0.000229,7]
[368698821,1751307047218,-152.708078,0.00022919,7]
[368698822,1751307047229,-152.708078,0.00022919,7]
[368698823,1751307047239,-151.0,0.00022919,7]
[368698824,1751307047248,-1500.0,0.00022919,14]
[368698825,1751307047258,-1500.0,0.00022919,14]
[368698826,1751307047269,-1500.0,0.00022919,14]
[368698827,1751307047279,-1500.0,0.00022919,14]
[368698828,1751307047289,-1462.214248,0.00022919,14]
[368698829,1751307047299,-720.799827,0.00022919,7]
[368698830,1751307047308,-720.799827,0.00022919,7]
[368698831,1751307047453,-151.0,0.00022919,7]
[368698832,1751307047463,-626.096722,0.00022919,7]
[368698833,1751307047474,-626.096722,0.00022919,7]
[368698834,1751307047483,-151.0,0.00022919,7]
[368698835,1751307047493,-151.0,0.00022919,7]
[368698836,1751307047502,-151.0,0.00022919,7]
[368698837,1751307047513,-181607.17429495,0.00022919,2]
[368698838,1751307047523,-460.0,0.00022939,2]
[368698839,1751307047533,-460.0,0.00022939,2]
[368698840,1751307047542,-1618.89,0.00022947,5]
[368698841,1751307047552,-1152.06854821,0.00022969,8]
[368698842,1751307047561,-500.0,0.00022973,2]
[368698843,1751307047571,-500.0,0.00022973,2]
[368698844,1751307047581,-150.0,0.00022973,2]
[368698845,1751307047591,-2000.0,0.00023,2]